bitfinex-derivatives/quotes_SOLF0:USTF0_20241009
["timestamp","ask_amount","ask_price","bid_price","bid_amount"]
[1728459779993,3.4937,143.18,143.16,10.72]
[1728459781381,3.4939,143.17,143.16,10.72]
[1728459782194,3.4939,143.17,143.15,10.84502]
[1728459787196,15.58,143.2,143.15,10.84502]
[1728459787398,3.4941,143.16,143.15,10.84502]
[1728459796509,3.4941,143.16,143.15,0.12502]
[1728459802312,14.2141,143.16,143.15,0.12502]
[1728459803217,3.4941,143.16,143.15,0.12502]
[1728459811938,14.2141,143.16,143.15,0.12502]
[1728459812639,3.4941,143.16,143.15,0.12502]
[1728459813441,345.45091326,143.23,143.15,0.12502]
[1728459813649,3.494,143.17,143.16,10.72]
[1728459815943,8.3535,143.19,143.16,14.2141]
[1728459816250,10.72,143.23,143.18,10.72]
[1728459816447,4.86,143.23,143.19,10.72]
[1728459817050,15.58,143.23,143.19,10.72]
[1728459817449,3.4931,143.21,143.19,10.72]
[1728459817949,3.4931,143.21,143.18,3.4936]
[1728459817950,3.4931,143.21,143.18,14.2136]
[1728459819352,3.4931,143.21,143.18,10.72]
[1728459820155,3.4932,143.2,143.18,10.72]
[1728459820358,15.58,143.23,143.18,10.72]
[1728459820558,10.72,143.22,143.17,10.72]
[1728459821257,3.4936,143.18,143.16,7.6195]
[1728459821447,10.72,143.22,143.16,18.3395]
[1728459821645,10.72,143.22,143.16,13.4795]
[1728459822061,10.72,143.21,143.16,13.4795]
[1728459822560,3.4938,143.18,143.16,13.4795]
[1728459823256,4.86,143.2,143.17,10.72]
[1728459823856,8.3534,143.2,143.17,14.2139]
[1728459824250,4.86,143.2,143.17,10.72]
[1728459824450,4.86,143.2,143.16,13.4795]
[1728459824956,3.4936,143.19,143.16,13.4795]
[1728459825758,3.4936,143.19,143.16,16.9736]
[1728459832463,3.4936,143.19,143.18,10.72]
[1728459834061,3.4932,143.2,143.18,10.72]
[1728459834361,3.4932,143.2,143.19,10.72]
[1728459834759,3.4932,143.2,143.18,10.72]
[1728459840772,3.4934,143.19,143.18,10.72]
[1728459844973,3.4934,143.19,143.16,6.2536]
[1728459845266,1.4447,143.25,143.16,2.7595]
[1728459845267,10.72,143.21,143.16,2.7595]
[1728459846070,3.4939,143.17,143.16,2.7595]
[1728459849267,3.4939,143.17,143.16,1.4159]
[1728459849971,3.4941,143.16,143.15,0.12502]
[1728459855976,14.2141,143.16,143.15,0.12502]
[1728459861282,3.4941,143.16,143.15,0.12502]
[1728459862486,8.3341,143.16,143.15,0.12502]
[1728459862989,3.4941,143.16,143.15,0.12502]
[1728459876298,14.2141,143.16,143.15,0.12502]
[1728459888491,3.4941,143.16,143.15,0.12502]
[1728459900208,14.2141,143.16,143.15,0.12502]
[1728459901007,3.4956,143.1,143.09,0.12502]
[1728459904005,8.3356,143.1,143.09,0.12502]
[1728459915114,4.84,143.1,143.09,0.12502]
[1728459915814,8.3356,143.1,143.09,0.12502]
[1728459932436,19.0556,143.1,143.09,0.12502]
[1728459934233,8.3356,143.1,143.09,0.12502]
[1728459937936,3.4956,143.1,143.09,0.12502]
[1728459944957,8.3356,143.1,143.09,0.12502]
[1728459959068,19.0556,143.1,143.09,0.12502]
[1728459962955,8.3356,143.1,143.09,0.12502]
[1728459965171,19.0556,143.1,143.09,0.12502]
[1728459968067,3.4956,143.1,143.09,0.12502]
[1728459968262,8.3356,143.1,143.09,0.12502]
[1728459970463,3.4956,143.1,143.09,0.12502]
[1728459970666,4.84,143.11,143.09,10.84502]
[1728459971473,4.84,143.12,143.09,10.84502]
[1728459973467,3.4954,143.11,143.09,10.84502]
[1728459973674,97.78458667,143.16,143.1,14.2155]
[1728459973871,4.84,143.15,143.1,14.2155]
[1728459974274,3.4947,143.14,143.12,10.72]
[1728459975270,3.4948,143.13,143.11,10.72]
[1728459975579,15.56,143.15,143.11,10.72]
[1728459976475,3.4948,143.14,143.11,10.72]
[1728459979476,3.4951,143.12,143.11,10.72]
[1728459979673,3.4951,143.12,143.09,10.84502]
[1728459980678,3.4951,143.12,143.09,14.34082]
[1728459981981,4.84,143.15,143.11,10.72]
[1728459982186,4.84,143.15,143.12,10.72]
[1728459982888,97.78458667,143.16,143.12,10.72]
[1728459983090,102.62458667,143.16,143.12,10.72]
[1728459983590,113.34458667,143.16,143.09,4.96502]
[1728459983785,10.72,143.14,143.09,4.96502]
[1728459984086,10.72,143.14,143.09,10.84502]
[1728459984285,3.4954,143.11,143.09,10.84502]
[1728459984500,4.84,143.13,143.09,10.84502]
[1728459984888,4.84,143.13,143.09,0.12502]
[1728459985091,4.84,143.13,143.09,10.84502]
[1728459985489,3.4951,143.12,143.09,10.84502]
[1728459986890,3.4951,143.12,143.1,10.72]
[1728459987090,8.3349,143.13,143.11,10.72]
[1728459988189,4.84,143.13,143.1,10.72]
[1728459988391,3.4952,143.12,143.1,10.72]
[1728459991996,8.335,143.13,143.1,10.72]
[1728459992397,3.495,143.13,143.1,10.72]
[1728459992592,3.495,143.13,143.11,10.72]
[1728459992897,4.84,143.15,143.12,10.72]
[1728459993695,8.3345,143.15,143.12,10.72]
[1728459994501,3.4945,143.15,143.12,10.72]
[1728459995498,3.4949,143.13,143.11,10.72]
[1728460000610,3.4949,143.13,143.11,14.2153]
[1728460003620,3.4947,143.14,143.11,14.2153]
[1728460009215,3.4947,143.14,143.12,10.72]
[1728460011017,3.4947,143.14,143.11,14.2153]
[1728460014732,102.62458667,143.16,143.09,4.96502]
[1728460015028,113.34458667,143.16,143.1,10.72]
[1728460015527,3.495,143.13,143.1,10.72]
[1728460017929,3.495,143.13,143.1,14.2155]
[1728460019217,113.34458667,143.16,143.09,8.46072]
[1728460019418,10.72,143.14,143.1,10.72]
[1728460020333,3.4954,143.11,143.1,10.72]
[1728460020528,15.56,143.13,143.09,0.12502]
[1728460020730,4.84,143.13,143.09,10.84502]
[1728460021029,3.4951,143.12,143.09,14.34082]
[1728460021623,3.4951,143.12,143.09,10.84502]
[1728460021823,3.4951,143.12,143.1,3.4956]
[1728460022735,3.4951,143.12,143.09,14.34072]
[1728460024323,4.84,143.13,143.09,0.12502]
[1728460024539,10.72,143.12,143.09,0.12502]
[1728460025029,10.72,143.1,143.09,0.12502]
[1728460025237,19.0556,143.1,143.09,0.12502]
[1728460036037,97.81724868,143.13,143.09,10.84502]
[1728460036241,4.84,143.12,143.11,10.72]
[1728460037543,97.81724868,143.13,143.11,10.72]
[1728460039642,97.81724868,143.13,143.12,10.72]
[1728460049852,101.31204868,143.13,143.12,10.72]
[1728460050050,86.2,143.18,143.12,10.72]
[1728460050240,4.84,143.17,143.12,10.72]
[1728460050753,183.98424881,143.18,143.12,10.72]
[1728460050951,4.84,143.17,143.12,10.72]
[1728460051449,3.4946,143.15,143.12,10.72]
[1728460053154,3.4947,143.14,143.12,10.72]
[1728460054854,15.56,143.13,143.09,0.12502]
[1728460055053,3.4956,143.1,143.09,0.12502]
[1728460063757,14.2156,143.1,143.09,0.12502]
[1728460065054,3.4956,143.1,143.09,0.12502]
[1728460067763,14.2156,143.1,143.09,0.12502]
[1728460073964,3.4956,143.1,143.09,0.12502]
[1728460077278,14.2156,143.1,143.09,0.12502]
[1728460087397,3.4968,143.06,143.03,0.12502]
[1728460087595,10.72,143.07,143.03,0.12502]
[1728460088001,10.72,143.06,143.03,0.12502]
[1728460088187,10.72,143.04,143.03,0.12502]
[1728460088498,14.217,143.04,143.03,0.12502]
[1728460089995,3.497,143.04,143.03,0.12502]
[1728460092896,14.217,143.04,143.03,0.12502]
[1728460096004,3.497,143.04,143.03,0.12502]
[1728460096296,6.9881,143.17,143.03,10.84502]
[1728460096498,10.72,143.1,143.06,10.72]
[1728460096691,4.84,143.09,143.06,10.72]
[1728460097093,4.84,143.08,143.06,10.72]
[1728460098494,8.3361,143.08,143.06,10.72]
[1728460098700,99.16654815,143.14,143.07,10.72]
[1728460098898,15.56,143.13,143.08,10.72]
[1728460099300,3.4958,143.1,143.08,10.72]
[1728460100095,3.4952,143.12,143.08,14.216]
[1728460100292,8.3352,143.12,143.1,10.72]
[1728460100494,4.84,143.12,143.1,10.72]
[1728460101397,8.3352,143.12,143.1,10.72]
[1728460102105,4.84,143.12,143.1,10.72]
[1728460102790,4.84,143.12,143.11,10.72]
[1728460103504,0.12502,143.15,143.11,10.72]
[1728460103797,0.12502,143.15,143.13,10.72]
[1728460104198,3.61952,143.15,143.12,10.72]
[1728460104598,0.12502,143.15,143.12,10.72]
[1728460105407,3.4946,143.14,143.12,10.72]
[1728460105999,3.4946,143.14,143.11,12.0476]
[1728460106201,3.495,143.13,143.11,12.0476]
[1728460106406,3.495,143.13,143.11,10.72]
[1728460106808,3.4947,143.14,143.11,10.72]
[1728460108313,3.4951,143.13,143.1,1.338]
[1728460110808,10.84502,143.15,143.06,6.2514]
[1728460111006,10.72,143.14,143.08,10.72]
[1728460111407,4.84,143.13,143.08,10.72]
[1728460112412,3.4955,143.11,143.08,10.72]
[1728460114014,3.4951,143.12,143.09,10.72]
[1728460114615,4.84,143.13,143.11,10.72]
[1728460114912,8.3349,143.13,143.11,10.72]
[1728460115114,3.4949,143.13,143.11,10.72]
[1728460115317,3.4947,143.14,143.11,10.72]
[1728460115507,3.4947,143.14,143.12,1.3793]
[1728460115907,3.4947,143.14,143.12,12.0993]
[1728460116313,4.96502,143.15,143.13,10.72]
[1728460117011,4.96502,143.15,143.12,12.0993]
[1728460117411,3.4946,143.14,143.12,12.0993]
[1728460118016,3.4946,143.14,143.09,15.56]
[1728460118017,3.4955,143.11,143.09,15.56]
[1728460118218,3.4955,143.11,143.09,10.72]
[1728460118808,3.4956,143.1,143.09,10.72]
[1728460119009,10.72,143.14,143.09,10.72]
[1728460119418,3.4953,143.12,143.09,10.72]
[1728460122415,3.4955,143.11,143.09,10.72]
[1728460125717,10.72,143.14,143.07,54.04945332]
[1728460125926,10.72,143.14,143.09,10.72]
[1728460126419,4.96502,143.15,143.09,10.72]
[1728460126619,15.68502,143.15,143.09,10.72]
[1728460127422,3.4953,143.12,143.09,10.72]
[1728460128924,3.4954,143.11,143.09,10.72]
[1728460131437,15.68502,143.15,143.09,10.72]
[1728460131627,3.4952,143.12,143.09,10.72]
[1728460132035,15.68502,143.15,143.09,10.72]
[1728460132235,0.12502,143.15,143.11,10.72]
[1728460132528,10.72,143.14,143.07,54.04945332]
[1728460132727,3.4957,143.1,143.08,10.72]
[1728460134430,3.4961,143.08,143.07,2.7634]
[1728460134624,3.4961,143.08,143.07,1.3793]
[1728460135645,3.497,143.04,143.03,0.12502]
[1728460138339,3.4969,143.05,143.03,0.12502]
[1728460140542,4.84,143.07,143.03,0.12502]
[1728460140732,3.497,143.04,143.03,0.12502]
[1728460141134,15.56,143.07,143.03,10.84502]
[1728460141446,3.4966,143.06,143.03,10.84502]
[1728460141833,3.4968,143.05,143.03,10.84502]
[1728460151238,3.4962,143.08,143.04,14.217]
[1728460151440,3.4962,143.08,143.05,10.72]
[1728460153041,3.4959,143.09,143.07,10.72]
[1728460155031,3.4961,143.08,143.07,10.72]
[1728460160051,3.496,143.09,143.07,10.72]
[1728460163545,3.4961,143.08,143.07,10.72]
[1728460166746,3.4955,143.11,143.07,14.2162]
[1728460166957,3.4955,143.11,143.1,10.72]
[1728460168650,3.4951,143.12,143.1,10.72]
[1728460168850,4.84,143.13,143.1,10.72]
[1728460169756,3.4953,143.12,143.1,10.72]
[1728460177069,4.84,143.13,143.1,10.72]
[1728460177364,4.84,143.13,143.07,4.84]
[1728460177575,4.84,143.13,143.09,10.72]
[1728460177864,3.4957,143.1,143.09,10.72]
[1728460178965,3.4954,143.11,143.09,10.72]
[1728460186178,4.84,143.13,143.07,4.84]
[1728460186367,3.496,143.09,143.08,10.72]
[1728460190375,3.496,143.09,143.05,4.88303578]
[1728460190571,3.4961,143.08,143.07,10.72]
[1728460194281,4.84,143.13,143.05,4.82473868]
[1728460194578,10.72,143.11,143.06,10.72]
[1728460194767,4.84,143.1,143.06,10.72]
[1728460195078,3.4961,143.09,143.07,10.72]
[1728460195684,3.4961,143.08,143.07,10.72]
[1728460199181,3.4959,143.09,143.07,10.72]
[1728460200782,4.84,143.1,143.08,10.72]
[1728460201378,4.84,143.1,143.05,4.82473868]
[1728460201676,4.84,143.1,143.05,15.54473868]
[1728460201876,3.496,143.09,143.04,1.3178]
[1728460202075,10.72,143.09,143.04,12.0378]
[1728460202277,10.72,143.08,143.03,0.12502]
[1728460202669,3.4964,143.07,143.03,0.12502]
[1728460202871,10.72,143.08,143.03,0.12502]
[1728460203285,3.4968,143.05,143.03,0.12502]
[1728460203778,3.4967,143.06,143.04,10.72]
[1728460204085,4.84,143.07,143.05,10.72]
[1728460206985,4.84,143.07,143.03,10.84502]
[1728460207489,3.4967,143.06,143.03,10.84502]
[1728460208387,3.4967,143.06,143.03,14.34232]
[1728460209086,3.4967,143.06,143.03,10.84502]
[1728460209285,10.72,143.05,143.03,0.12502]
[1728460209490,4.84,143.04,143.03,0.12502]
[1728460209785,4.84,143.04,142.98,10.72]
[1728460209786,10.72,143.03,142.98,10.72]
[1728460211192,10.72,143.02,142.97,10.84502]
[1728460211381,3.4985,142.99,142.97,10.84502]
[1728460213088,3.4985,142.99,142.97,0.12502]
[1728460213492,3.4985,142.99,142.97,10.84502]
[1728460215791,3.4985,142.98,142.97,0.12502]
[1728460222089,3.4985,142.98,142.97,10.84502]
[1728460229999,3.4985,142.98,142.97,0.12502]
[1728460263845,14.2185,142.98,142.97,0.12502]
[1728460264056,19.0585,142.98,142.97,0.12502]
[1728460264737,3.4999,142.93,142.87,4.2705]
[1728460264942,3.4999,142.93,142.91,10.84502]
[1728460266542,3.4996,142.94,142.91,10.84502]
[1728460267252,3.4997,142.94,142.91,10.84502]
[1728460267645,4.84,142.95,142.91,10.84502]
[1728460269045,3.5,142.93,142.91,10.84502]
[1728460275156,4.84,142.95,142.92,10.72]
[1728460275351,4.84,142.95,142.93,10.72]
[1728460275754,3.4992,142.96,142.93,10.72]
[1728460277361,3.4993,142.95,142.93,10.72]
[1728460278258,15.56,142.98,142.93,10.72]
[1728460278466,4.84,142.98,142.94,10.72]
[1728460278854,3.4991,142.96,142.93,1.3329]
[1728460279054,3.4991,142.96,142.93,12.0529]
[1728460279356,15.56,142.98,142.93,12.0529]
[1728460280459,3.4991,142.96,142.93,12.0529]
[1728460284052,3.4991,142.96,142.93,15.5526]
[1728460284769,15.56,142.98,142.93,15.5526]
[1728460284964,3.4988,142.97,142.94,14.2195]
[1728460285265,3.4988,142.97,142.94,10.72]
[1728460289066,3.499,142.96,142.94,10.72]
[1728460289272,10.72,142.98,142.93,12.0529]
[1728460289762,3.4995,142.94,142.93,1.3329]
[1728460297374,4.84,142.96,142.93,1.3329]
[1728460297571,3.4993,142.95,142.93,1.3329]
[1728460298169,3.4993,142.95,142.93,12.0529]
[1728460298969,3.4989,142.97,142.94,3.4995]
[1728460299170,3.4989,142.97,142.96,10.72]
[1728460301278,97.92085028,142.99,142.96,10.72]
[1728460301577,0.12502,143.03,142.98,10.72]
[1728460301766,10.84502,143.03,142.98,10.72]
[1728460301971,4.84,143.02,142.98,10.72]
[1728460302471,3.498,143.0,142.98,10.72]
[1728460302872,10.84502,143.03,142.98,10.72]
[1728460302873,0.12502,143.03,142.98,10.72]
[1728460303073,3.4975,143.02,142.98,14.2184]
[1728460303276,3.4975,143.02,142.99,10.72]
[1728460309378,3.62242,143.03,143.0,14.218]
[1728460309580,3.62242,143.03,142.98,1.3188]
[1728460309581,0.12502,143.03,143.02,10.72]
[1728460313590,0.12502,143.03,143.02,14.2175]
[1728460314177,0.12502,143.03,143.02,10.72]
[1728460317886,0.12502,143.03,143.02,14.2175]
[1728460319093,0.12502,143.03,143.02,3.4975]
[1728460319292,0.12502,143.03,142.98,2.7316]
[1728460319793,0.12502,143.03,142.99,10.72]
[1728460319999,3.4976,143.02,142.99,10.72]
[1728460320394,0.12502,143.03,143.0,10.72]
[1728460320586,3.498,143.0,142.99,10.72]
[1728460320989,0.12502,143.03,142.99,10.72]
[1728460321193,3.4979,143.01,142.99,10.72]
[1728460323192,0.12502,143.03,143.0,10.72]
[1728460323885,3.62242,143.03,143.0,10.72]
[1728460324296,3.4978,143.02,143.0,10.72]
[1728460324494,0.12502,143.03,143.0,10.72]
[1728460325193,3.4977,143.02,143.0,10.72]
[1728460334600,0.12502,143.03,143.0,10.72]
[1728460335398,3.62242,143.03,143.0,14.2179]
[1728460336602,0.12502,143.03,143.02,10.72]
[1728460338408,0.12502,143.03,143.02,14.2175]
[1728460346507,0.12502,143.03,143.0,4.84]
[1728460346701,0.12502,143.03,143.01,3.4978]
[1728460346907,0.12502,143.03,143.01,14.2178]
[1728460347609,10.72,143.02,142.92,14.10776293]
[1728460347814,15.56,143.02,142.97,10.72]
[1728460349309,10.72,142.99,142.91,0.12502]
[1728460349517,10.72,142.98,142.91,0.12502]
[1728460349809,3.4992,142.96,142.93,10.72]
[1728460350915,3.4992,142.96,142.94,10.72]
[1728460351619,10.72,142.98,142.93,10.72]
[1728460351917,3.4993,142.95,142.93,10.72]
[1728460361319,10.72,142.98,142.93,10.72]
[1728460361520,1.4473,143.01,142.95,10.72]
[1728460361827,4.84,143.0,142.95,10.72]
[1728460362334,15.56,143.0,142.95,10.72]
[1728460363428,3.4987,142.98,142.95,14.2191]
[1728460366135,4.84,143.0,142.95,10.72]
[1728460366425,75.54,143.06,142.96,10.72]
[1728460366628,4.84,143.02,142.99,10.72]
[1728460366828,3.498,143.01,142.97,14.2186]
[1728460367027,15.56,143.02,142.97,14.2186]
[1728460368326,15.56,143.02,142.97,17.78611713]
[1728460368534,3.4981,143.0,142.97,17.78611713]
[1728460369638,15.56,143.02,142.97,17.78611713]
[1728460369838,3.4979,143.01,142.97,17.78611713]
[1728460370025,4.84,143.02,142.97,14.28751713]
[1728460370226,4.84,143.02,142.98,14.2184]
[1728460370427,3.4977,143.02,142.98,14.2184]
[1728460372031,10.72,143.01,142.96,15.56]
[1728460372233,10.72,143.0,142.95,1.3069]
[1728460372437,10.72,143.0,142.95,12.0269]
[1728460373650,3.4986,142.98,142.95,15.5261]
[1728460377635,0.12502,143.03,142.96,10.72]
[1728460377838,3.4982,143.0,142.97,14.2186]
[1728460378439,3.498,143.01,142.98,3.4985]
[1728460378643,4.86,143.02,142.98,3.4985]
[1728460379539,3.498,143.0,142.97,14.2187]
[1728460386065,15.58,143.02,142.97,10.72]
[1728460386350,3.4983,142.99,142.97,10.72]
[1728460386545,15.58,143.02,142.95,1.3069]
[1728460386741,10.72,143.0,142.95,1.3069]
[1728460386944,10.72,143.0,142.94,12.1345]
[1728460387147,3.4989,142.97,142.94,12.1345]
[1728460387843,3.4989,142.97,142.94,15.6339]
[1728460388043,3.4989,142.97,142.95,10.72]
[1728460388940,4.86,142.99,142.95,10.72]
[1728460389145,3.4986,142.98,142.95,14.2192]
[1728460390044,4.86,142.99,142.96,3.4989]
[1728460390045,3.4984,142.99,142.96,3.4989]
[1728460391049,3.4985,142.98,142.95,14.2191]
[1728460392149,3.4985,142.98,142.95,10.72]
[1728460392345,3.4985,142.98,142.96,3.499]
[1728460393552,3.4984,142.99,142.96,3.499]
[1728460398256,3.4986,142.98,142.96,3.499]
[1728460398656,3.4986,142.98,142.95,14.2191]
[1728460399964,4.86,143.0,142.95,10.72]
[1728460400156,3.4985,142.99,142.96,3.4989]
[1728460402062,4.86,143.0,142.97,10.72]
[1728460402763,3.4983,142.99,142.97,10.72]
[1728460403357,0.12502,143.03,142.97,10.72]
[1728460403557,8.3576,143.02,142.99,3.4981]
[1728460404259,0.12502,143.03,143.0,10.72]
[1728460404459,0.12502,143.03,143.01,10.72]
[1728460405656,0.12502,143.03,143.02,10.72]
[1728460406464,3.62242,143.03,143.0,3.498]
[1728460406760,0.12502,143.03,142.99,12.0633]
[1728460407163,3.4977,143.02,142.99,15.5615]
[1728460409060,3.62242,143.03,143.01,10.72]
[1728460409257,0.12502,143.03,143.0,10.72]
[1728460409567,0.12502,143.03,143.02,10.72]
[1728460411066,0.12502,143.03,143.02,14.2175]
[1728460416476,0.12502,143.03,143.01,1.4253]
[1728460416676,0.12502,143.03,143.01,14.2177]
[1728460416984,0.12502,143.03,143.02,10.72]
[1728460419778,0.12502,143.03,143.0,1.3772]
[1728460420079,3.62232,143.03,143.02,10.72]
[1728460422676,0.12502,143.03,143.02,10.72]
[1728460423983,0.12502,143.03,143.0,12.0972]
[1728460424373,3.62232,143.03,143.0,12.0972]
[1728460425082,0.12502,143.03,143.0,12.0972]
[1728460425985,0.12502,143.03,143.01,10.72]
[1728460426379,0.12502,143.03,143.01,14.2177]
[1728460426787,0.12502,143.03,143.01,10.72]
[1728460428879,3.62232,143.03,143.01,10.72]
[1728460429489,0.12502,143.03,142.99,1.3433]
[1728460429685,0.12502,143.03,142.99,12.0633]
[1728460430573,3.4976,143.02,142.99,12.0633]
[1728460431387,3.4978,143.01,142.99,12.0633]
[1728460431883,3.4977,143.02,142.99,12.0633]
[1728460433893,3.4977,143.02,143.0,10.72]
[1728460434186,0.12502,143.03,143.0,10.72]
[1728460434386,0.12502,143.03,143.02,10.72]
[1728460434587,0.12502,143.03,143.01,10.72]
[1728460435192,3.62232,143.03,143.01,10.72]
[1728460438496,0.12502,143.03,143.01,10.72]
[1728460439197,3.62232,143.03,143.01,10.72]
[1728460442715,3.4975,143.02,143.01,10.72]
[1728460443007,3.4975,143.02,143.0,10.72]
[1728460444601,0.12502,143.03,143.0,10.72]
[1728460444807,3.4975,143.02,143.0,10.72]
[1728460447803,3.4975,143.02,143.01,10.72]
[1728460449206,3.62242,143.03,143.01,10.72]
[1728460454211,0.12502,143.03,143.01,10.72]
[1728460454509,0.12502,143.03,143.01,14.2177]
[1728460456412,0.12502,143.03,143.01,3.4977]
[1728460456605,0.12502,143.03,143.01,14.2177]
[1728460456804,0.12502,143.03,143.02,14.2175]
[1728460457515,0.12502,143.03,143.02,10.72]
[1728460458105,0.12502,143.03,143.02,14.2175]
[1728460458411,0.12502,143.03,143.02,10.72]
[1728460460316,0.12502,143.03,143.01,14.2177]
[1728460460517,0.12502,143.03,143.01,10.72]
[1728460460921,3.62232,143.03,143.01,10.72]
[1728460461211,0.12502,143.03,142.99,18.2941]
[1728460461418,3.4977,143.02,142.99,18.2941]
[1728460462219,3.4977,143.02,142.99,16.9323]
[1728460462517,3.4976,143.02,142.99,16.9323]
[1728460472821,3.4978,143.01,142.99,16.9323]
[1728460473922,3.4976,143.02,142.99,16.9323]
[1728460474719,3.4976,143.02,142.99,13.4341]
[1728460474924,3.4982,143.0,142.98,10.72]
[1728460475626,3.4982,143.0,142.97,3.4986]
[1728460475818,3.4982,143.0,142.98,10.72]
[1728460477526,3.4982,143.0,142.97,10.72]
[1728460479126,4.84,143.02,142.96,3.4989]
[1728460479330,3.4984,142.99,142.96,10.72]
[1728460479532,15.56,143.02,142.96,10.72]
[1728460480427,3.4987,142.98,142.96,10.72]
[1728460488535,4.84,143.02,142.97,14.2187]
[1728460488934,3.4982,143.0,142.97,14.2187]
[1728460492537,10.72,142.98,142.91,0.12502]
[1728460492833,10.72,142.96,142.91,0.12502]
[1728460493028,4.84,142.95,142.91,0.12502]
[1728460493235,3.4997,142.93,142.91,0.12502]
[1728460496742,3.4996,142.94,142.91,10.84502]
[1728460497345,3.5,142.92,142.91,0.12502]
[1728460497545,19.06,142.92,142.91,0.12502]
[1728460503157,15.56,142.92,142.85,0.12502]
[1728460503348,10.72,142.89,142.85,0.12502]
[1728460503548,15.56,142.89,142.85,0.12502]
[1728460503751,3.5015,142.86,142.85,0.12502]
[1728460504546,3.5013,142.87,142.85,0.12502]
[1728460505757,3.5015,142.86,142.85,0.12502]
[1728460509660,10.72,142.88,142.85,0.12502]
[1728460509865,8.3413,142.87,142.85,0.12502]
[1728460510661,10.72,142.86,142.79,0.12502]
[1728460510864,3.5029,142.8,142.79,0.12502]
[1728460512356,14.2229,142.8,142.79,0.12502]
[1728460512760,3.5029,142.8,142.79,0.12502]
[1728460517273,10.72,142.81,142.79,0.12502]
[1728460517476,10.72,142.8,142.79,0.12502]
[1728460518065,3.5029,142.8,142.79,0.12502]
[1728460518277,14.2229,142.8,142.79,0.12502]
[1728460518765,3.5029,142.8,142.79,0.12502]
[1728460518968,14.2229,142.8,142.79,0.12502]
[1728460520473,4.84,142.81,142.73,0.12502]
[1728460520474,3.5044,142.74,142.73,0.12502]
[1728460520673,14.2244,142.74,142.73,0.12502]
[1728460522275,3.5042,142.75,142.73,0.12502]
[1728460523176,77.0395,142.83,142.73,0.12502]
[1728460523379,3.5044,142.74,142.73,0.12502]
[1728460524278,4.84,142.77,142.73,0.12502]
[1728460524279,3.5044,142.75,142.73,10.84502]
[1728460524481,3.5044,142.75,142.73,0.12502]
[1728460524977,3.5041,142.76,142.73,0.12502]
[1728460525178,98.06272367,142.79,142.73,0.12502]
[1728460525475,3.5032,142.79,142.75,3.5041]
[1728460526069,4.89296844,142.86,142.73,0.12502]
[1728460526070,3.5044,142.74,142.73,0.12502]
[1728460526273,8.7844,142.74,142.73,0.12502]
[1728460527477,19.5044,142.74,142.73,0.12502]
[1728460528471,8.7844,142.74,142.73,0.12502]